[Event "Elite Hotels Open 2024"]
[Site "Elite Stadshotellet, Kungsgatan 6, Vaxjo, Sweden"]
[Date "2024.02.11"]
[Round "7.16"]
[White "Mejvik, Jacob"]
[Black "Sigeman, Johan"]
[Result "0-1"]
[TimeControl "15 minutes + 5 seconds per move from move one (Round 1 - 4) / 90 minutes + 30 seconds per move from move one (Round 5 - 8)"]
[WhiteFideId "1710621"]
[BlackFideId "1705601"]
[WhiteElo "2103"]
[BlackElo "2020"]

1. e4 {[%clk 01:27:46]} {[%emt 00:03:13]} e5 {[%clk 01:30:55]} {[%emt
00:00:05]} 2. Nf3 {[%clk 01:28:11]} {[%emt 00:00:05]} Nc6 {[%clk 01:31:22]}
{[%emt 00:00:04]} 3. Bb5 {[%clk 01:28:36]} {[%emt 00:00:06]} a6 {[%clk
01:29:22]} {[%emt 00:02:30]} 4. Ba4 {[%clk 01:28:59]} {[%emt 00:00:07]} Nf6
{[%clk 01:29:44]} {[%emt 00:00:08]} 5. O-O {[%clk 01:29:22]} {[%emt 00:00:07]}
Be7 {[%clk 01:28:41]} {[%emt 00:01:31]} 6. Re1 {[%clk 01:29:18]} {[%emt
00:00:35]} b5 {[%clk 01:29:00]} {[%emt 00:00:11]} 7. Bb3 {[%clk 01:29:43]}
{[%emt 00:00:06]} d6 {[%clk 01:29:17]} {[%emt 00:00:12]} 8. c3 {[%clk
01:30:05]} {[%emt 00:00:08]} O-O {[%clk 01:29:28]} {[%emt 00:00:19]} 9. h3
{[%clk 01:29:53]} {[%emt 00:00:43]} Nb8 {[%clk 01:27:59]} {[%emt 00:01:59]} 10.
d4 {[%clk 01:30:04]} {[%emt 00:00:18]} Nbd7 {[%clk 01:28:25]} {[%emt 00:00:04]}
11. Bc2 {[%clk 01:28:43]} {[%emt 00:01:51]} Bb7 {[%clk 01:28:00]} {[%emt
00:00:56]} 12. b3 {[%clk 01:27:28]} {[%emt 00:01:46]} exd4 {[%clk 01:20:20]}
{[%emt 00:08:10]} 13. cxd4 {[%clk 01:27:15]} {[%emt 00:00:42]} d5 {[%clk
01:20:21]} {[%emt 00:00:29]} 14. e5 {[%clk 01:23:22]} {[%emt 00:04:23]} Ne4
{[%clk 01:20:23]} {[%emt 00:00:28]} 15. Nfd2 {[%clk 01:23:29]} {[%emt
00:00:23]} f5 {[%clk 01:14:52]} {[%emt 00:06:01]} 16. Nxe4 {[%clk 01:20:14]}
{[%emt 00:03:46]} dxe4 {[%clk 01:08:40]} {[%emt 00:06:41]} 17. a4 {[%clk
01:18:56]} {[%emt 00:01:48]} Nb6 {[%clk 01:05:05]} {[%emt 00:04:05]} 18. Na3
{[%clk 01:18:20]} {[%emt 00:01:06]} Bb4 {[%clk 00:57:30]} {[%emt 00:08:05]} 19.
Re3 {[%clk 01:13:20]} {[%emt 00:05:31]} Nd5 {[%clk 00:52:17]} {[%emt 00:05:42]}
20. Rg3 {[%clk 01:13:24]} {[%emt 00:00:26]} f4 {[%clk 00:51:03]} {[%emt
00:01:44]} 21. Rg4 {[%clk 01:12:55]} {[%emt 00:00:58]} Nc3 {[%clk 00:48:23]}
{[%emt 00:03:09]} 22. Qf1 {[%clk 01:13:18]} {[%emt 00:00:08]} Qxd4 {[%clk
00:37:59]} {[%emt 00:10:55]} 23. Bxf4 {[%clk 01:13:42]} {[%emt 00:00:05]} Ne2+
{[%clk 00:31:46]} {[%emt 00:06:44]} 24. Qxe2 {[%clk 01:14:10]} {[%emt
00:00:02]} Qxa1+ {[%clk 00:32:15]} 25. Kh2 {[%clk 01:14:16]} {[%emt 00:00:24]}
Rxf4 {[%clk 00:29:52]} {[%emt 00:02:54]} 26. Rxf4 {[%clk 01:14:19]} {[%emt
00:00:27]} Qxe5 {[%clk 00:30:14]} {[%emt 00:00:08]} 27. g3 {[%clk 01:14:17]}
{[%emt 00:00:32]} Bxa3 {[%clk 00:30:21]} {[%emt 00:00:23]} 28. f3 {[%clk
01:11:27]} {[%emt 00:03:19]} Bc1 {[%clk 00:28:27]} {[%emt 00:02:25]} 29. Bxe4
{[%clk 01:09:31]} {[%emt 00:02:26]} Bxf4 {[%clk 00:28:38]} {[%emt 00:00:19]}
0-1

[Event "Elite Hotels Open 2024"]
[Site "Elite Stadshotellet, Kungsgatan 6, Vaxjo, Sweden"]
[Date "2024.02.11"]
[Round "8.1"]
[White "Seo, Jung Min"]
[Black "Hillarp, Tiger"]
[Result "1/2-1/2"]
[TimeControl "15 minutes + 5 seconds per move from move one (Round 1 - 4) / 90 minutes + 30 seconds per move from move one (Round 5 - 8)"]
[WhiteTitle "IM"]
[BlackTitle "GM"]
[WhiteFideId "1734687"]
[BlackFideId "1700812"]
[WhiteElo "2466"]
[BlackElo "2476"]

1. d4 {[%clk 01:31:00]} Nf6 {[%clk 01:30:37]} {[%emt 00:00:23]} 2. c4 {[%clk
01:31:27]} {[%emt 00:00:02]} e6 {[%clk 01:30:51]} {[%emt 00:00:16]} 3. Nf3
{[%clk 01:31:56]} {[%emt 00:00:01]} d5 {[%clk 01:30:24]} {[%emt 00:00:57]} 4.
Nc3 {[%clk 01:32:21]} {[%emt 00:00:06]} Bb4 {[%clk 01:27:57]} {[%emt 00:02:57]}
5. Qa4+ {[%clk 01:31:25]} {[%emt 00:01:26]} Nc6 {[%clk 01:28:19]} {[%emt
00:00:08]} 6. e3 {[%clk 01:31:53]} {[%emt 00:00:02]} O-O {[%clk 01:28:32]}
{[%emt 00:00:16]} 7. Qc2 {[%clk 01:31:02]} {[%emt 00:01:21]} dxc4 {[%clk
01:19:00]} {[%emt 00:10:03]} 8. Bxc4 {[%clk 01:30:35]} {[%emt 00:00:58]} Bd6
{[%clk 01:19:21]} {[%emt 00:00:06]} 9. O-O {[%clk 01:19:44]} {[%emt 00:11:23]}
e5 {[%clk 01:18:07]} {[%emt 00:01:44]} 10. h3 {[%clk 01:18:35]} {[%emt
00:01:39]} a6 {[%clk 01:07:17]} {[%emt 00:11:20]} 11. a3 {[%clk 01:17:37]}
{[%emt 00:01:28]} h6 {[%clk 01:02:21]} {[%emt 00:05:25]} 12. b4 {[%clk
01:08:33]} {[%emt 00:09:35]} exd4 {[%clk 00:57:28]} {[%emt 00:05:23]} 13. exd4
{[%clk 01:08:34]} {[%emt 00:00:29]} Ne7 {[%clk 00:56:50]} {[%emt 00:01:07]} 14.
Re1 {[%clk 01:02:07]} {[%emt 00:06:57]} c6 {[%clk 00:45:41]} {[%emt 00:11:40]}
15. Bd2 {[%clk 00:58:51]} {[%emt 00:03:45]} Bf5 {[%clk 00:43:23]} {[%emt
00:02:48]} 16. Qa2 {[%clk 00:54:45]} {[%emt 00:04:37]} Ned5 {[%clk 00:41:34]}
{[%emt 00:02:19]} 17. Nxd5 {[%clk 00:54:34]} {[%emt 00:00:41]} Nxd5 {[%clk
00:33:21]} {[%emt 00:08:43]} 18. Ne5 {[%clk 00:51:09]} {[%emt 00:03:54]} Rc8
{[%clk 00:30:08]} {[%emt 00:03:43]} 19. Bxd5 {[%clk 00:45:23]} {[%emt
00:06:17]} cxd5 {[%clk 00:30:21]} {[%emt 00:00:16]} 20. Qxd5 {[%clk 00:45:45]}
{[%emt 00:00:09]} Be6 {[%clk 00:29:50]} {[%emt 00:01:00]} 21. Qe4 {[%clk
00:46:09]} {[%emt 00:00:07]} Bxe5 {[%clk 00:29:52]} {[%emt 00:00:28]} 22. Qxe5
{[%clk 00:46:33]} {[%emt 00:00:05]} Bd5 {[%clk 00:24:30]} {[%emt 00:05:52]} 23.
Bf4 {[%clk 00:33:25]} {[%emt 00:13:39]} Rc6 {[%clk 00:22:19]} {[%emt 00:02:41]}
24. Qe7 {[%clk 00:28:42]} {[%emt 00:05:12]} Rg6 {[%clk 00:21:00]} {[%emt
00:01:49]} 25. Bg3 {[%clk 00:28:46]} {[%emt 00:00:26]} Bc6 {[%clk 00:16:17]}
{[%emt 00:05:13]} 26. Qxd8 {[%clk 00:28:18]} {[%emt 00:00:59]} Rxd8 {[%clk
00:16:40]} {[%emt 00:00:07]} 27. Rad1 {[%clk 00:28:38]} {[%emt 00:00:10]} Bd5
{[%clk 00:14:28]} {[%emt 00:02:41]} 28. Kh2 {[%clk 00:27:31]} {[%emt 00:01:37]}
Rc6 {[%clk 00:14:13]} {[%emt 00:00:45]} 29. Rd3 {[%clk 00:26:23]} {[%emt
00:01:38]} f6 {[%clk 00:12:37]} {[%emt 00:02:07]} 30. Re7 {[%clk 00:21:25]}
{[%emt 00:05:27]} Re6 {[%clk 00:11:01]} {[%emt 00:02:07]} 31. Rc7 {[%clk
00:18:43]} {[%emt 00:03:13]} Re4 {[%clk 00:11:15]} {[%emt 00:00:16]} 32. Rc5
{[%clk 00:17:32]} {[%emt 00:01:41]} Re2 {[%clk 00:08:15]} {[%emt 00:03:30]} 33.
Re3 {[%clk 00:17:03]} {[%emt 00:00:59]} Rxe3 {[%clk 00:08:27]} {[%emt
00:00:17]} 34. fxe3 {[%clk 00:17:28]} {[%emt 00:00:05]} Bc6 {[%clk 00:08:36]}
{[%emt 00:00:21]} 35. Kg1 {[%clk 00:16:55]} {[%emt 00:01:04]} Kf7 {[%clk
00:08:52]} {[%emt 00:00:14]} 36. Bf4 {[%clk 00:15:48]} {[%emt 00:01:36]} Ke6
{[%clk 00:08:33]} {[%emt 00:00:49]} 37. g4 {[%clk 00:15:02]} {[%emt 00:01:16]}
Rd5 {[%clk 00:07:20]} {[%emt 00:01:42]} 38. Rc3 {[%clk 00:15:06]} {[%emt
00:00:27]} h5 {[%clk 00:06:59]} {[%emt 00:00:51]} 39. Kf2 {[%clk 00:13:45]}
{[%emt 00:01:51]} hxg4 {[%clk 00:07:23]} {[%emt 00:00:07]} 40. hxg4 {[%clk
00:14:13]} {[%emt 00:00:02]} g5 {[%clk 00:07:42]} {[%emt 00:00:10]} 41. Bh2
{[%clk 00:12:50]} {[%emt 00:01:53]} Rd7 {[%clk 00:07:56]} {[%emt 00:00:16]} 42.
Rc5 {[%clk 00:12:54]} {[%emt 00:00:27]} Rd5 {[%clk 00:08:11]} {[%emt 00:00:14]}
43. Bc7 {[%clk 00:11:39]} {[%emt 00:01:44]} Rd7 {[%clk 00:07:48]} {[%emt
00:00:53]} 44. Bh2 {[%clk 00:11:53]} {[%emt 00:00:17]} Rd5 {[%clk 00:08:12]}
{[%emt 00:00:06]} 45. Rxd5 {[%clk 00:09:12]} {[%emt 00:03:11]} Bxd5 {[%clk
00:07:56]} {[%emt 00:00:46]} 46. Bc7 {[%clk 00:09:34]} {[%emt 00:00:08]} Kd7
{[%clk 00:08:12]} {[%emt 00:00:14]} 47. Bb6 {[%clk 00:09:59]} {[%emt 00:00:05]}
Be4 {[%clk 00:08:29]} {[%emt 00:00:12]} 1/2-1/2

[Event "Elite Hotels Open 2024"]
[Site "Elite Stadshotellet, Kungsgatan 6, Vaxjo, Sweden"]
[Date "2024.02.11"]
[Round "8.2"]
[White "Jepson, Christian"]
[Black "Sorensen, Hampus"]
[Result "1/2-1/2"]
[TimeControl "15 minutes + 5 seconds per move from move one (Round 1 - 4) / 90 minutes + 30 seconds per move from move one (Round 5 - 8)"]
[WhiteTitle "IM"]
[BlackTitle "IM"]
[WhiteFideId "1701185"]
[BlackFideId "8703884"]
[WhiteElo "2386"]
[BlackElo "2430"]

1. c4 {[%clk 01:30:54]} {[%emt 00:00:05]} e6 {[%clk 01:30:44]} {[%emt
00:00:17]} 2. Nf3 {[%clk 01:29:49]} {[%emt 00:01:35]} d5 {[%clk 01:31:03]}
{[%emt 00:00:11]} 3. g3 {[%clk 01:29:44]} {[%emt 00:00:34]} Nf6 {[%clk
01:31:22]} {[%emt 00:00:12]} 4. Bg2 {[%clk 01:29:58]} {[%emt 00:00:15]} Be7
{[%clk 01:31:33]} {[%emt 00:00:19]} 5. d4 {[%clk 01:29:21]} {[%emt 00:01:07]}
O-O {[%clk 01:31:35]} {[%emt 00:00:27]} 6. O-O {[%clk 01:29:44]} {[%emt
00:00:07]} c6 {[%clk 01:28:43]} {[%emt 00:03:23]} 7. b3 {[%clk 01:26:55]}
{[%emt 00:03:19]} b6 {[%clk 01:25:50]} {[%emt 00:03:22]} 8. Bb2 {[%clk
01:25:32]} {[%emt 00:01:53]} a5 {[%clk 01:23:23]} {[%emt 00:02:58]} 9. Nc3
{[%clk 01:16:44]} {[%emt 00:09:18]} Ba6 {[%clk 01:20:08]} {[%emt 00:03:45]} 10.
Rc1 {[%clk 00:54:50]} {[%emt 00:22:24]} Nbd7 {[%clk 01:13:13]} {[%emt
00:07:25]} 11. a4 {[%clk 00:45:20]} {[%emt 00:09:59]} Bb7 {[%clk 00:58:34]}
{[%emt 00:15:10]} 12. Nd2 {[%clk 00:42:37]} {[%emt 00:03:13]} c5 {[%clk
00:58:11]} {[%emt 00:00:53]} 13. e3 {[%clk 00:36:22]} {[%emt 00:06:45]} Rb8
{[%clk 00:52:52]} {[%emt 00:05:49]} 14. Nb5 {[%clk 00:32:49]} {[%emt 00:04:03]}
1/2-1/2

[Event "Elite Hotels Open 2024"]
[Site "Elite Stadshotellet, Kungsgatan 6, Vaxjo, Sweden"]
[Date "2024.02.11"]
[Round "8.3"]
[White "Grahn, Vidar"]
[Black "Pantzar, Milton"]
[Result "1/2-1/2"]
[TimeControl "15 minutes + 5 seconds per move from move one (Round 1 - 4) / 90 minutes + 30 seconds per move from move one (Round 5 - 8)"]
[BlackTitle "IM"]
[WhiteFideId "1744780"]
[BlackFideId "1721003"]
[WhiteElo "2234"]
[BlackElo "2468"]

1. d4 {[%clk 01:30:57]} {[%emt 00:00:02]} d5 {[%clk 01:30:21]} {[%emt
00:00:39]} 2. c4 {[%clk 01:31:23]} {[%emt 00:00:04]} e6 {[%clk 01:30:44]}
{[%emt 00:00:07]} 3. Nf3 {[%clk 01:31:43]} {[%emt 00:00:10]} Nf6 {[%clk
01:30:44]} {[%emt 00:00:30]} 4. g3 {[%clk 01:31:52]} {[%emt 00:00:21]} Be7
{[%clk 01:30:42]} {[%emt 00:00:30]} 5. Bg2 {[%clk 01:32:15]} {[%emt 00:00:09]}
O-O {[%clk 01:31:04]} {[%emt 00:00:08]} 6. O-O {[%clk 01:32:42]} {[%emt
00:00:03]} c6 {[%clk 01:31:23]} {[%emt 00:00:12]} 7. Nc3 {[%clk 01:33:01]}
{[%emt 00:00:11]} a5 {[%clk 01:30:41]} {[%emt 00:01:12]} 8. b3 {[%emt
00:02:53]} b6 {[%clk 01:15:57]} {[%emt 00:15:12]} 9. Ne5 {[%clk 01:24:08]}
{[%emt 00:07:02]} Ba6 {[%clk 01:11:47]} {[%emt 00:04:40]} 10. Qd3 {[%clk
01:17:05]} {[%emt 00:07:32]} Nfd7 {[%clk 01:04:08]} {[%emt 00:08:10]} 11. Nxd7
{[%clk 01:10:43]} {[%emt 00:06:53]} Nxd7 {[%clk 01:03:35]} {[%emt 00:01:03]} 12.
Bf4 {[%clk 01:07:06]} {[%emt 00:04:06]} Bf6 {[%clk 00:53:28]} {[%emt 00:10:37]}
13. Bd6 {[%clk 01:01:50]} {[%emt 00:05:45]} Re8 {[%clk 00:51:55]} {[%emt
00:02:04]} 14. f4 {[%clk 00:58:52]} {[%emt 00:03:28]} b5 {[%clk 00:45:15]}
{[%emt 00:07:10]} 15. cxb5 {[%clk 00:58:37]} {[%emt 00:00:45]} cxb5 {[%clk
00:42:30]} {[%emt 00:03:16]} 16. b4 {[%clk 00:58:12]} {[%emt 00:00:54]} Nb8
{[%clk 00:35:33]} {[%emt 00:07:27]} 17. Bxb8 {[%clk 00:57:33]} {[%emt
00:01:09]} Qxb8 {[%clk 00:33:07]} {[%emt 00:02:56]} 18. a3 {[%clk 00:57:25]}
{[%emt 00:00:37]} Rc8 {[%clk 00:32:29]} {[%emt 00:01:07]} 19. e3 {[%clk
00:54:42]} {[%emt 00:03:14]} axb4 {[%clk 00:29:29]} {[%emt 00:03:30]} 20. axb4
{[%clk 00:55:03]} {[%emt 00:00:08]} Be7 {[%clk 00:29:49]} {[%emt 00:00:10]} 21.
Rfb1 {[%clk 00:53:51]} {[%emt 00:01:43]} Rc4 {[%clk 00:28:08]} {[%emt
00:02:11]} 22. Nxd5 {[%clk 00:52:21]} {[%emt 00:02:00]} exd5 {[%clk 00:28:16]}
{[%emt 00:00:22]} 23. Bxd5 {[%clk 00:52:45]} {[%emt 00:00:05]} Bb7 {[%clk
00:20:07]} {[%emt 00:08:40]} 24. Bxc4 {[%clk 00:51:16]} {[%emt 00:01:59]} bxc4
{[%clk 00:20:31]} {[%emt 00:00:07]} 25. Qxc4 {[%clk 00:51:05]} {[%emt
00:00:41]} Qd8 {[%clk 00:12:39]} {[%emt 00:08:20]} 26. b5 {[%clk 00:49:08]}
{[%emt 00:02:28]} Bf8 {[%clk 00:11:11]} {[%emt 00:01:57]} 27. Rxa8 {[%clk
00:43:12]} {[%emt 00:06:26]} Qxa8 {[%clk 00:11:20]} {[%emt 00:00:21]} 28. b6
{[%clk 00:41:50]} {[%emt 00:01:53]} Qa5 {[%clk 00:07:18]} {[%emt 00:04:32]} 29.
Qd3 {[%clk 00:39:17]} {[%emt 00:03:03]} Qa8 {[%clk 00:04:47]} {[%emt 00:03:01]}
30. Qc3 {[%clk 00:35:07]} {[%emt 00:04:39]} Qa2 {[%clk 00:04:15]} {[%emt
00:01:02]} 31. Rb2 {[%clk 00:31:34]} {[%emt 00:04:05]} Qd5 {[%clk 00:03:47]}
{[%emt 00:00:57]} 32. Kf2 {[%clk 00:28:40]} {[%emt 00:03:24]} Qh1 {[%clk
00:03:50]} {[%emt 00:00:27]} 33. Rd2 {[%clk 00:22:21]} {[%emt 00:06:49]} Qxh2+
{[%clk 00:02:58]} {[%emt 00:01:21]} 34. Ke1 {[%clk 00:22:33]} {[%emt 00:00:19]}
Qh1+ {[%clk 00:03:03]} {[%emt 00:00:25]} 35. Kf2 {[%clk 00:22:35]} {[%emt
00:00:28]} Bd5 {[%clk 00:01:25]} {[%emt 00:02:08]} 36. Ke2 {[%clk 00:20:26]}
{[%emt 00:02:39]} h5 {[%clk 00:01:17]} {[%emt 00:00:37]} 37. Kd3 {[%clk
00:19:17]} {[%emt 00:01:40]} Qb1+ {[%clk 00:01:19]} {[%emt 00:00:28]} 38. Ke2
{[%clk 00:19:09]} {[%emt 00:00:38]} Qxb6 {[%clk 00:01:37]} {[%emt 00:00:11]} 39.
Rb2 {[%clk 00:18:29]} {[%emt 00:01:10]} Qg6 {[%clk 00:01:16]} {[%emt 00:00:51]}
40. Rb8 {[%clk 00:16:12]} {[%emt 00:02:48]} Qa6+ {[%clk 00:01:02]} {[%emt
00:00:44]} 41. Kf2 {[%clk 00:14:08]} {[%emt 00:02:34]} Qd6 {[%clk 00:00:41]}
{[%emt 00:00:50]} 42. Qc8 {[%clk 00:13:52]} {[%emt 00:00:46]} Be4 {[%clk
00:00:34]} {[%emt 00:00:38]} 43. Qd8 {[%clk 00:11:58]} {[%emt 00:02:24]} Qa3
{[%clk 00:00:46]} {[%emt 00:00:18]} 44. Qc7 {[%clk 00:11:38]} {[%emt 00:00:50]}
g6 {[%clk 00:00:40]} {[%emt 00:00:36]} 45. Qd8 {[%clk 00:03:30]} {[%emt
00:08:39]} Kg7 {[%clk 00:00:41]} {[%emt 00:00:29]} 46. Qe8 {[%clk 00:03:33]}
{[%emt 00:00:26]} Bh1 {[%clk 00:00:45]} {[%emt 00:00:25]} 47. Qe5+ {[%clk
00:02:42]} {[%emt 00:01:21]} Kg8 {[%clk 00:00:57]} {[%emt 00:00:19]} 48. Qe8
{[%clk 00:03:08]} {[%emt 00:00:04]} Bd5 {[%clk 00:00:51]} {[%emt 00:00:35]} 49.
e4 {[%clk 00:01:57]} {[%emt 00:01:41]} Be6 {[%clk 00:01:20]} {[%emt 00:00:02]}
50. f5 {[%clk 00:02:02]} {[%emt 00:00:25]} gxf5 {[%clk 00:01:33]} {[%emt
00:00:17]} 51. d5 {[%clk 00:02:18]} {[%emt 00:00:14]} Qc5+ {[%clk 00:00:40]}
{[%emt 00:01:22]} 52. Kg2 {[%clk 00:02:26]} {[%emt 00:00:22]} Bxd5 {[%clk
00:00:35]} {[%emt 00:00:35]} 53. exd5 {[%clk 00:02:49]} {[%emt 00:00:08]} Qxd5+
{[%clk 00:01:01]} {[%emt 00:00:04]} 54. Kh2 {[%clk 00:02:59]} {[%emt 00:00:20]}
Qc5 {[%clk 00:00:58]} {[%emt 00:00:32]} 55. Qd8 {[%clk 00:02:58]} {[%emt
00:00:32]} f4 {[%clk 00:01:09]} {[%emt 00:00:20]} 56. gxf4 {[%clk 00:03:03]}
{[%emt 00:00:23]} Qf2+ {[%clk 00:01:13]} {[%emt 00:00:26]} 57. Kh1 {[%clk
00:03:20]} {[%emt 00:00:13]} Qf1+ {[%clk 00:01:41]} {[%emt 00:00:03]} 58. Kh2
{[%clk 00:03:46]} {[%emt 00:00:04]} Qxf4+ {[%clk 00:02:06]} {[%emt 00:00:04]}
59. Kh1 {[%clk 00:03:52]} {[%emt 00:00:23]} Qe4+ {[%clk 00:01:40]} {[%emt
00:00:57]} 60. Kh2 {[%clk 00:03:53]} {[%emt 00:00:29]} Qe5+ {[%clk 00:01:55]}
{[%emt 00:00:15]} 61. Kh1 {[%clk 00:04:11]} {[%emt 00:00:13]} Qe4+ {[%clk
00:01:41]} {[%emt 00:00:43]} 62. Kh2 {[%clk 00:04:37]} {[%emt 00:00:04]} Qf4+
{[%clk 00:01:46]} {[%emt 00:00:24]} 63. Kh1 {[%clk 00:04:55]} {[%emt 00:00:13]}
Qc1+ {[%clk 00:02:07]} {[%emt 00:00:10]} 64. Kh2 {[%clk 00:05:09]} {[%emt
00:00:15]} Qc5 {[%clk 00:02:08]} {[%emt 00:00:29]} 65. Rc8 {[%clk 00:05:29]}
{[%emt 00:00:10]} Qf2+ {[%clk 00:01:42]} {[%emt 00:00:55]} 66. Kh1 {[%clk
00:05:55]} {[%emt 00:00:05]} Qf3+ {[%clk 00:01:38]} {[%emt 00:00:35]} 67. Kh2
{[%clk 00:06:20]} {[%emt 00:00:04]} Qf4+ {[%clk 00:01:21]} {[%emt 00:00:47]} 68.
Kh1 {[%clk 00:06:45]} {[%emt 00:00:05]} Qf3+ {[%clk 00:01:12]} {[%emt
00:00:38]} 69. Kh2 {[%clk 00:07:11]} {[%emt 00:00:04]} 1/2-1/2

[Event "Elite Hotels Open 2024"]
[Site "Elite Stadshotellet, Kungsgatan 6, Vaxjo, Sweden"]
[Date "2024.02.11"]
[Round "8.4"]
[White "Johansson, Linus"]
[Black "Ostlund, Joar"]
[Result "1-0"]
[TimeControl "15 minutes + 5 seconds per move from move one (Round 1 - 4) / 90 minutes + 30 seconds per move from move one (Round 5 - 8)"]
[WhiteTitle "IM"]
[BlackTitle "FM"]
[WhiteFideId "1711113"]
[BlackFideId "1735020"]
[WhiteElo "2434"]
[BlackElo "2327"]

1. d4 {[%clk 01:30:54]} {[%emt 00:00:02]} Nf6 {[%clk 01:30:53]} {[%emt
00:00:10]} 2. c4 {[%clk 01:31:18]} {[%emt 00:00:07]} e6 {[%clk 01:31:14]}
{[%emt 00:00:08]} 3. Nc3 {[%clk 01:31:43]} {[%emt 00:00:05]} d5 {[%clk
01:31:28]} {[%emt 00:00:16]} 4. cxd5 {[%clk 01:32:09]} {[%emt 00:00:05]} exd5
{[%clk 01:31:50]} {[%emt 00:00:04]} 5. Bg5 {[%clk 01:32:37]} {[%emt 00:00:06]}
Be7 {[%clk 01:32:00]} {[%emt 00:00:19]} 6. e3 {[%clk 01:33:01]} {[%emt
00:00:06]} O-O {[%clk 01:32:21]} {[%emt 00:00:09]} 7. Bd3 {[%clk 01:33:28]}
{[%emt 00:00:03]} Re8 {[%clk 01:32:27]} {[%emt 00:00:24]} 8. h3 {[%clk
01:29:47]} {[%emt 00:04:11]} h6 {[%clk 01:19:06]} {[%emt 00:13:52]} 9. Bf4
{[%clk 01:29:38]} {[%emt 00:00:37]} c5 {[%clk 01:17:46]} {[%emt 00:01:50]} 10.
Nf3 {[%clk 01:29:32]} {[%emt 00:00:36]} Nc6 {[%clk 01:16:43]} {[%emt 00:01:34]}
11. O-O {[%clk 01:29:52]} {[%emt 00:00:10]} a6 {[%clk 01:07:56]} {[%emt
00:09:16]} 12. dxc5 {[%clk 01:29:53]} {[%emt 00:00:29]} Bxc5 {[%clk 01:08:07]}
{[%emt 00:00:20]} 13. Rc1 {[%clk 01:26:56]} {[%emt 00:03:28]} d4 {[%clk
00:57:09]} {[%emt 00:11:27]} 14. Ne2 {[%clk 01:19:27]} {[%emt 00:07:59]} Ba7
{[%clk 00:50:23]} {[%emt 00:07:16]} 15. Nexd4 {[%clk 01:19:33]} {[%emt
00:00:24]} Nxd4 {[%clk 00:50:35]} {[%emt 00:00:18]} 16. Nxd4 {[%clk 01:19:50]}
{[%emt 00:00:14]} Nd5 {[%clk 00:50:35]} {[%emt 00:00:28]} 17. Ne2 {[%clk
01:10:56]} {[%emt 00:09:23]} g5 {[%clk 00:21:16]} {[%emt 00:29:50]} 18. Bg3
{[%clk 00:54:57]} {[%emt 00:16:29]} Bxh3 {[%clk 00:15:29]} {[%emt 00:06:17]} 19.
gxh3 {[%clk 00:51:56]} {[%emt 00:03:31]} Nxe3 {[%clk 00:15:52]} {[%emt
00:00:07]} 20. fxe3 {[%clk 00:39:05]} {[%emt 00:13:22]} Rxe3 {[%clk 00:16:18]}
{[%emt 00:00:04]} 21. Bc4 {[%clk 00:39:26]} {[%emt 00:00:09]} Rxg3+ {[%clk
00:04:11]} {[%emt 00:12:36]} 22. Kh2 {[%clk 00:39:05]} {[%emt 00:00:51]} Re3
{[%clk 00:03:29]} {[%emt 00:01:13]} 23. Rxf7 {[%clk 00:31:30]} {[%emt
00:08:04]} Kh8 {[%clk 00:00:35]} {[%emt 00:03:24]} 24. Qxd8+ {[%clk 00:31:28]}
{[%emt 00:00:32]} Rxd8 {[%clk 00:01:00]} {[%emt 00:00:05]} 25. Rxb7 {[%clk
00:31:44]} {[%emt 00:00:15]} 1-0

[Event "Elite Hotels Open 2024"]
[Site "Elite Stadshotellet, Kungsgatan 6, Vaxjo, Sweden"]
[Date "2024.02.11"]
[Round "8.5"]
[White "Lindberg, Bengt"]
[Black "Akesson, Ralf"]
[Result "1-0"]
[TimeControl "15 minutes + 5 seconds per move from move one (Round 1 - 4) / 90 minutes + 30 seconds per move from move one (Round 5 - 8)"]
[WhiteTitle "IM"]
[BlackTitle "GM"]
[WhiteFideId "1700359"]
[BlackFideId "1700120"]
[WhiteElo "2331"]
[BlackElo "2378"]

1. e4 {[%clk 01:30:55]} {[%emt 00:00:04]} c6 {[%clk 01:30:32]} {[%emt
00:00:29]} 2. d4 {[%clk 01:31:08]} {[%emt 00:00:17]} d5 {[%clk 01:30:55]}
{[%emt 00:00:06]} 3. exd5 {[%clk 01:31:25]} {[%emt 00:00:13]} cxd5 {[%clk
01:31:15]} {[%emt 00:00:10]} 4. c4 {[%clk 01:31:50]} {[%emt 00:00:04]} Nf6
{[%clk 01:31:22]} {[%emt 00:00:24]} 5. Nc3 {[%clk 01:32:13]} {[%emt 00:00:07]}
e6 {[%clk 01:31:13]} {[%emt 00:00:38]} 6. Nf3 {[%clk 01:32:33]} {[%emt
00:00:10]} Bb4 {[%clk 01:31:24]} {[%emt 00:00:20]} 7. cxd5 {[%clk 01:32:41]}
{[%emt 00:00:22]} Nxd5 {[%clk 01:31:37]} {[%emt 00:00:17]} 8. Bd2 {[%clk
01:33:00]} {[%emt 00:00:10]} O-O {[%clk 01:28:38]} {[%emt 00:03:30]} 9. Bd3
{[%clk 01:33:18]} {[%emt 00:00:11]} Nc6 {[%clk 01:23:37]} {[%emt 00:05:32]} 10.
O-O {[%clk 01:33:34]} {[%emt 00:00:13]} Be7 {[%clk 01:23:13]} {[%emt 00:00:54]}
11. a3 {[%clk 01:15:15]} {[%emt 00:18:50]} Nf6 {[%clk 01:17:37]} {[%emt
00:06:05]} 12. Bg5 {[%clk 01:08:28]} {[%emt 00:07:16]} h6 {[%clk 01:16:21]}
{[%emt 00:01:47]} 13. Bf4 {[%clk 01:08:30]} {[%emt 00:00:27]} Re8 {[%clk
01:09:46]} {[%emt 00:07:05]} 14. Re1 {[%clk 01:05:59]} {[%emt 00:03:01]} Bf8
{[%clk 01:05:58]} {[%emt 00:04:18]} 15. Bc2 {[%clk 01:03:06]} {[%emt 00:03:23]}
Bd7 {[%clk 00:52:28]} {[%emt 00:14:00]} 16. Qd3 {[%clk 01:02:16]} {[%emt
00:01:20]} Ne7 {[%clk 00:51:24]} {[%emt 00:01:34]} 17. Be5 {[%clk 00:54:09]}
{[%emt 00:08:37]} Ng6 {[%clk 00:48:48]} {[%emt 00:03:06]} 18. Nh4 {[%clk
00:53:26]} {[%emt 00:01:13]} Bc6 {[%clk 00:36:02]} {[%emt 00:13:16]} 19. Nxg6
{[%clk 00:51:29]} {[%emt 00:02:27]} fxg6 {[%clk 00:36:26]} {[%emt 00:00:07]} 20.
Qxg6 {[%clk 00:50:27]} {[%emt 00:01:32]} Bd6 {[%clk 00:36:45]} {[%emt
00:00:11]} 21. Re3 {[%clk 00:47:33]} {[%emt 00:03:23]} Qe7 {[%clk 00:33:18]}
{[%emt 00:03:58]} 22. Rg3 {[%clk 00:47:16]} {[%emt 00:00:46]} 1-0